[Event "Betsys MČR v online bleskovém šachu 2021"]
[Site "Chess.com"]
[Date "2021.04.17"]
[Round "5"]
[White "Cenisuh"]
[Black "HerjoAnpe"]
[Result "1-0"]
[WhiteElo "1603"]
[BlackElo "1237"]
[TimeControl "180+1"]
[EndTime "9:48:04 PDT"]
[Termination "Uživatel Cenisuh zvítězil matem"]

1. Nf3 {[%clk 0:02:53.6]} 1... e6 {[%clk 0:02:57.4]} 2. d4 {[%clk 0:02:53.2]}
2... d5 {[%clk 0:02:57.2]} 3. g3 {[%clk 0:02:52.6]} 3... c5 {[%clk 0:02:56.8]}
4. Bg2 {[%clk 0:02:52.7]} 4... cxd4 {[%clk 0:02:54.4]} 5. Nxd4 {[%clk
0:02:51.6]} 5... Nf6 {[%clk 0:02:54.4]} 6. O-O {[%clk 0:02:50.2]} 6... Nc6
{[%clk 0:02:50.5]} 7. b3 {[%clk 0:02:47.4]} 7... Nxd4 {[%clk 0:02:49.3]} 8. Qxd4
{[%clk 0:02:46.3]} 8... b6 {[%clk 0:02:43.3]} 9. Bb2 {[%clk 0:02:35]} 9... Be7
{[%clk 0:02:39.9]} 10. Nc3 {[%clk 0:02:28.3]} 10... Bd7 {[%clk 0:02:35.5]} 11.
e4 {[%clk 0:02:21.3]} 11... dxe4 {[%clk 0:02:34.1]} 12. Nxe4 {[%clk 0:02:20.2]}
12... Nxe4 {[%clk 0:02:28.3]} 13. Qxg7 {[%clk 0:02:12.9]} 13... Bf6 {[%clk
0:02:10.5]} 14. Bxf6 {[%clk 0:02:10.1]} 14... Qxf6 {[%clk 0:02:05.2]} 15. Qxf6
{[%clk 0:02:09.1]} 15... Nxf6 {[%clk 0:02:04.5]} 16. Bxa8 {[%clk 0:02:09]} 16...
Ke7 {[%clk 0:01:57.8]} 17. Bg2 {[%clk 0:02:06.2]} 17... Rc8 {[%clk 0:01:54.5]}
18. Rac1 {[%clk 0:02:04.7]} 18... Ne8 {[%clk 0:01:48.9]} 19. c4 {[%clk 0:02:03]}
19... Nd6 {[%clk 0:01:46.7]} 20. Rfd1 {[%clk 0:02:01.8]} 20... Rc7 {[%clk
0:01:43.3]} 21. h4 {[%clk 0:02:01.9]} 21... h5 {[%clk 0:01:41]} 22. Rd2 {[%clk
0:01:56.1]} 22... Nb7 {[%clk 0:01:33.8]} 23. Rcd1 {[%clk 0:01:53.3]} 23... Bc8
{[%clk 0:01:24.1]} 24. a3 {[%clk 0:01:43.1]} 24... Nc5 {[%clk 0:01:19.7]} 25.
Rb1 {[%clk 0:01:30.4]} 25... Nd7 {[%clk 0:01:16.3]} 26. Kh2 {[%clk 0:01:23.9]}
26... Ne5 {[%clk 0:01:15.8]} 27. Bf3 {[%clk 0:01:20.4]} 27... Ng4+ {[%clk
0:01:08.4]} 28. Bxg4 {[%clk 0:01:04.7]} 28... hxg4 {[%clk 0:01:08]} 29. Rd4
{[%clk 0:01:04.8]} 29... f5 {[%clk 0:01:06.5]} 30. Re1 {[%clk 0:00:58.8]} 30...
Kf6 {[%clk 0:01:05.4]} 31. Rd6 {[%clk 0:00:54.9]} 31... Re7 {[%clk 0:01:03.5]}
32. Kg2 {[%clk 0:00:46]} 32... Bb7+ {[%clk 0:01:01.8]} 33. Kh2 {[%clk
0:00:45.1]} 33... Bf3 {[%clk 0:00:58.8]} 34. Re3 {[%clk 0:00:40.5]} 34... Kf7
{[%clk 0:00:55.5]} 35. Re5 {[%clk 0:00:34.6]} 35... Be4 {[%clk 0:00:50.3]} 36.
Rd8 {[%clk 0:00:32.2]} 36... Bc2 {[%clk 0:00:42.8]} 37. Rd6 {[%clk 0:00:26.9]}
37... Bxb3 {[%clk 0:00:38.4]} 38. c5 {[%clk 0:00:22.7]} 38... bxc5 {[%clk
0:00:36.7]} 39. Rxc5 {[%clk 0:00:21.2]} 39... Bd5 {[%clk 0:00:24.5]} 40. h5
{[%clk 0:00:18.3]} 40... Kg7 {[%clk 0:00:21]} 41. h6+ {[%clk 0:00:16.6]} 41...
Kxh6 {[%clk 0:00:19.9]} 42. Rcxd5 {[%clk 0:00:15]} 42... Kg5 {[%clk 0:00:16.6]}
43. Re5 {[%clk 0:00:14.5]} 43... Rh7+ {[%clk 0:00:14.2]} 44. Kg2 {[%clk
0:00:13.8]} 44... Rc7 {[%clk 0:00:09.3]} 45. Rexe6 {[%clk 0:00:12.9]} 45... Rg7
{[%clk 0:00:05.5]} 46. a4 {[%clk 0:00:11.4]} 46... a5 {[%clk 0:00:05.6]} 47. Ra6
{[%clk 0:00:09.9]} 47... f4 {[%clk 0:00:06.1]} 48. Rxa5# {[%clk 0:00:08.4]} 1-0

[Event "Betsys MČR v online bleskovém šachu 2021"]
[Site "Chess.com"]
[Date "2021.04.17"]
[Round "5"]
[White "elftom"]
[Black "ghostdog777"]
[Result "0-1"]
[WhiteElo "1956"]
[BlackElo "2271"]
[TimeControl "180+1"]
[EndTime "9:48:06 PDT"]
[Termination "Uživatel ghostdog777 zvítězil na čas"]

1. c4 {[%clk 0:02:58.9]} 1... c6 {[%clk 0:02:57.7]} 2. e4 {[%clk 0:02:53.5]}
2... e5 {[%clk 0:02:56]} 3. Nc3 {[%clk 0:02:48]} 3... d6 {[%clk 0:02:56]} 4. g3
{[%clk 0:02:47.8]} 4... Be6 {[%clk 0:02:54.9]} 5. d3 {[%clk 0:02:47.2]} 5... g6
{[%clk 0:02:54.8]} 6. Bg2 {[%clk 0:02:47.1]} 6... Bg7 {[%clk 0:02:54.7]} 7. Nge2
{[%clk 0:02:47.6]} 7... Qd7 {[%clk 0:02:54.6]} 8. Be3 {[%clk 0:02:43.1]} 8...
Bh3 {[%clk 0:02:51.3]} 9. Bxh3 {[%clk 0:02:26.8]} 9... Qxh3 {[%clk 0:02:50.4]}
10. Qd2 {[%clk 0:02:18.1]} 10... Nf6 {[%clk 0:02:43.7]} 11. f3 {[%clk
0:02:13.5]} 11... Qg2 {[%clk 0:01:50.9]} 12. O-O-O {[%clk 0:02:12.4]} 12... Qxf3
{[%clk 0:01:50.7]} 13. Rdf1 {[%clk 0:02:04.8]} 13... Qg4 {[%clk 0:01:50]} 14. h3
{[%clk 0:02:03.9]} 14... Qe6 {[%clk 0:01:47.3]} 15. g4 {[%clk 0:02:03.8]} 15...
Na6 {[%clk 0:01:34.9]} 16. a3 {[%clk 0:02:02.2]} 16... Nc5 {[%clk 0:01:34.1]}
17. Kc2 {[%clk 0:01:34.9]} 17... Nfd7 {[%clk 0:01:29.7]} 18. Bh6 {[%clk
0:01:25.8]} 18... Bxh6 {[%clk 0:01:14.9]} 19. Qxh6 {[%clk 0:01:24.7]} 19...
O-O-O {[%clk 0:01:15.3]} 20. b4 {[%clk 0:01:19.5]} 20... Na6 {[%clk 0:01:14.2]}
21. Qe3 {[%clk 0:01:13]} 21... Kb8 {[%clk 0:01:13.2]} 22. b5 {[%clk 0:01:12]}
22... cxb5 {[%clk 0:01:08.7]} 23. Nxb5 {[%clk 0:01:11.4]} 23... Nac5 {[%clk
0:01:08.4]} 24. Rb1 {[%clk 0:01:05.9]} 24... f5 {[%clk 0:01:01.3]} 25. gxf5
{[%clk 0:01:02.4]} 25... gxf5 {[%clk 0:01:00.1]} 26. Nec3 {[%clk 0:01:02.2]}
26... Rhg8 {[%clk 0:00:54.3]} 27. Rh2 {[%clk 0:00:46.6]} 27... a6 {[%clk
0:00:50.8]} 28. d4 {[%clk 0:00:28.4]} 28... exd4 {[%clk 0:00:42.8]} 29. Nxd4
{[%clk 0:00:27.5]} 29... Qxc4 {[%clk 0:00:42.2]} 30. Nc6+ {[%clk 0:00:23.5]}
30... Ka8 {[%clk 0:00:36.8]} 31. Nxd8 {[%clk 0:00:22.8]} 31... Rxd8 {[%clk
0:00:34.6]} 32. exf5 {[%clk 0:00:20.4]} 32... Na4 {[%clk 0:00:13.9]} 33. Rd2
{[%clk 0:00:17.1]} 33... Rc8 {[%clk 0:00:12.1]} 34. Rb3 {[%clk 0:00:15.9]} 34...
Ndc5 {[%clk 0:00:10.8]} 35. Rb4 {[%clk 0:00:14.1]} 35... Qf7 {[%clk 0:00:09.4]}
36. Qf3 {[%clk 0:00:11.7]} 36... Nxc3 {[%clk 0:00:08.8]} 37. Qxc3 {[%clk
0:00:09.5]} 37... Qxf5+ {[%clk 0:00:08.6]} 38. Kb2 {[%clk 0:00:03.6]} 38... Ne4
{[%clk 0:00:08.4]} 39. Qd4 {[%clk 0:00:02.2]} 39... Nxd2 {[%clk 0:00:07.6]} 40.
Qxd2 {[%clk 0:00:02.4]} 40... Qe5+ {[%clk 0:00:07.5]} 41. Kb3 {[%clk 0:00:02.3]}
41... Rc5 {[%clk 0:00:06.6]} 42. Qg2 {[%clk 0:00:01.7]} 42... d5 {[%clk
0:00:06.1]} 43. Qg8+ {[%clk 0:00:01.5]} 43... Ka7 {[%clk 0:00:06.7]} 44. Qc8
{[%clk 0:00:01.3]} 44... Qc3+ {[%clk 0:00:06.5]} 0-1

[Event "Betsys MČR v online bleskovém šachu 2021"]
[Site "Chess.com"]
[Date "2021.04.17"]
[Round "5"]
[White "viklan"]
[Black "clarissamcclellan"]
[Result "1-0"]
[WhiteElo "1587"]
[BlackElo "1815"]
[TimeControl "180+1"]
[EndTime "9:48:07 PDT"]
[Termination "Uživatel viklan zvítězil po vzdání soupeře"]

1. d4 {[%clk 0:03:00.9]} 1... Nf6 {[%clk 0:02:52.5]} 2. c4 {[%clk 0:03:00.3]}
2... g6 {[%clk 0:02:52.2]} 3. Nf3 {[%clk 0:03:00.5]} 3... Bg7 {[%clk 0:02:51.6]}
4. g3 {[%clk 0:03:01.4]} 4... O-O {[%clk 0:02:45.6]} 5. Bg2 {[%clk 0:03:02.3]}
5... d6 {[%clk 0:02:43.1]} 6. O-O {[%clk 0:03:03.2]} 6... Nbd7 {[%clk
0:02:42.1]} 7. Nc3 {[%clk 0:03:03.4]} 7... e5 {[%clk 0:02:41.9]} 8. e4 {[%clk
0:03:02.3]} 8... Re8 {[%clk 0:02:37.3]} 9. Re1 {[%clk 0:03:01.8]} 9... c6 {[%clk
0:02:36.1]} 10. b3 {[%clk 0:02:49.1]} 10... exd4 {[%clk 0:02:20.9]} 11. Nxd4
{[%clk 0:02:48.4]} 11... Nc5 {[%clk 0:02:14.8]} 12. f3 {[%clk 0:02:21.9]} 12...
a5 {[%clk 0:02:11.7]} 13. Be3 {[%clk 0:02:19.2]} 13... a4 {[%clk 0:01:58.7]} 14.
b4 {[%clk 0:02:13.7]} 14... Ne6 {[%clk 0:01:57.9]} 15. a3 {[%clk 0:01:54.6]}
15... Nxd4 {[%clk 0:01:56.4]} 16. Bxd4 {[%clk 0:01:54.3]} 16... Be6 {[%clk
0:01:55.4]} 17. Qd3 {[%clk 0:01:50.7]} 17... d5 {[%clk 0:01:46.7]} 18. cxd5
{[%clk 0:01:41.6]} 18... cxd5 {[%clk 0:01:46.2]} 19. e5 {[%clk 0:01:36.6]} 19...
Nd7 {[%clk 0:01:44.6]} 20. f4 {[%clk 0:01:36.2]} 20... Nb6 {[%clk 0:01:40.2]}
21. Bf2 {[%clk 0:01:19.5]} 21... Nc4 {[%clk 0:01:35.7]} 22. Bxd5 {[%clk
0:01:09.6]} 22... Bxd5 {[%clk 0:01:32.8]} 23. Qxd5 {[%clk 0:01:08.2]} 23... Qxd5
{[%clk 0:01:25.2]} 24. Nxd5 {[%clk 0:01:07.9]} 24... Rad8 {[%clk 0:01:21]} 25.
Nc3 {[%clk 0:01:04.5]} 25... Rd3 {[%clk 0:01:16.3]} 26. Nxa4 {[%clk 0:01:02.6]}
26... Ra8 {[%clk 0:01:06.3]} 27. Nc5 {[%clk 0:01:02.1]} 27... Rdxa3 {[%clk
0:01:03.9]} 28. Rxa3 {[%clk 0:01:01]} 28... Nxa3 {[%clk 0:01:02.3]} 29. Nxb7
{[%clk 0:01:00.8]} 29... Nc2 {[%clk 0:01:02.2]} 30. Rb1 {[%clk 0:00:58.5]} 30...
Bf8 {[%clk 0:01:01]} 31. Bc5 {[%clk 0:00:55.9]} 31... Rb8 {[%clk 0:00:54.7]} 32.
Bxf8 {[%clk 0:00:52.8]} 32... Kxf8 {[%clk 0:00:51.8]} 33. Nd6 {[%clk 0:00:52.6]}
33... Rxb4 {[%clk 0:00:47.4]} 34. Rxb4 {[%clk 0:00:48.2]} 34... Nxb4 {[%clk
0:00:48.3]} 35. Kg2 {[%clk 0:00:45.1]} 35... Kg7 {[%clk 0:00:44.9]} 36. h3
{[%clk 0:00:44]} 36... Nd3 {[%clk 0:00:44.1]} 37. Ne4 {[%clk 0:00:42.8]} 37...
h5 {[%clk 0:00:42.7]} 38. Nf6 {[%clk 0:00:39.3]} 38... Nc5 {[%clk 0:00:40.8]}
39. Nd5 {[%clk 0:00:38.7]} 39... Ne6 {[%clk 0:00:40]} 40. g4 {[%clk 0:00:37.2]}
40... hxg4 {[%clk 0:00:38.6]} 41. hxg4 {[%clk 0:00:35.7]} 41... Nd4 {[%clk
0:00:38.4]} 42. Kg3 {[%clk 0:00:34.5]} 42... Ne6 {[%clk 0:00:36.1]} 43. Kf3
{[%clk 0:00:34.1]} 43... Nd4+ {[%clk 0:00:35.3]} 44. Ke4 {[%clk 0:00:34.1]}
44... Ne2 {[%clk 0:00:33.5]} 45. Nf6 {[%clk 0:00:33.1]} 45... Nc3+ {[%clk
0:00:27.7]} 46. Kd4 {[%clk 0:00:32.7]} 46... Ne2+ {[%clk 0:00:27.3]} 47. Ke4
{[%clk 0:00:30.7]} 47... Nc3+ {[%clk 0:00:27.2]} 48. Kf3 {[%clk 0:00:30.9]}
48... Nb5 {[%clk 0:00:24.7]} 49. f5 {[%clk 0:00:30.4]} 49... gxf5 {[%clk
0:00:22]} 50. gxf5 {[%clk 0:00:30.3]} 50... Nd4+ {[%clk 0:00:21.7]} 51. Ke4
{[%clk 0:00:29.1]} 51... Nc6 {[%clk 0:00:21.5]} 52. Nd7 {[%clk 0:00:27.4]} 52...
Kg8 {[%clk 0:00:19.5]} 53. f6 {[%clk 0:00:26.8]} 53... Nd8 {[%clk 0:00:18.5]}
54. Nc5 {[%clk 0:00:24.7]} 54... Kf8 {[%clk 0:00:17.4]} 55. Kd5 {[%clk
0:00:24.8]} 55... Ke8 {[%clk 0:00:16.7]} 56. Kd6 {[%clk 0:00:25.1]} 56... Kf8
{[%clk 0:00:13.9]} 57. Kd7 {[%clk 0:00:24.7]} 1-0

[Event "Betsys MČR v online bleskovém šachu 2021"]
[Site "Chess.com"]
[Date "2021.04.17"]
[Round "5"]
[White "mendryxchess"]
[Black "marfuss"]
[Result "1-0"]
[WhiteElo "1770"]
[BlackElo "2028"]
[TimeControl "180+1"]
[EndTime "9:48:08 PDT"]
[Termination "Uživatel mendryxchess zvítězil po vzdání soupeře"]

1. e4 {[%clk 0:03:00.9]} 1... e5 {[%clk 0:02:58.8]} 2. Nf3 {[%clk 0:03:01]} 2...
Nf6 {[%clk 0:02:57.1]} 3. Bc4 {[%clk 0:03:01]} 3... Nxe4 {[%clk 0:02:53.9]} 4.
Nc3 {[%clk 0:03:01.4]} 4... Nxc3 {[%clk 0:02:50.4]} 5. dxc3 {[%clk 0:03:02.3]}
5... Be7 {[%clk 0:02:44.2]} 6. Nxe5 {[%clk 0:02:57.9]} 6... O-O {[%clk
0:02:43.7]} 7. O-O {[%clk 0:02:56.1]} 7... d6 {[%clk 0:02:39.3]} 8. Nf3 {[%clk
0:02:55.7]} 8... Bg4 {[%clk 0:02:37.1]} 9. Bf4 {[%clk 0:02:52]} 9... Nc6 {[%clk
0:02:35]} 10. Re1 {[%clk 0:02:46.9]} 10... Bf6 {[%clk 0:02:32.2]} 11. h3 {[%clk
0:02:44]} 11... Bh5 {[%clk 0:02:31.6]} 12. Bd5 {[%clk 0:02:28.9]} 12... Qd7
{[%clk 0:02:25.9]} 13. Qd3 {[%clk 0:02:22.3]} 13... Rfe8 {[%clk 0:02:19.5]} 14.
Be4 {[%clk 0:02:17.5]} 14... Bxf3 {[%clk 0:01:50]} 15. Qxf3 {[%clk 0:02:11.4]}
15... Ne5 {[%clk 0:01:40]} 16. Bxe5 {[%clk 0:02:01.9]} 16... Bxe5 {[%clk
0:01:38.4]} 17. Bxb7 {[%clk 0:02:01.3]} 17... Rab8 {[%clk 0:01:36.2]} 18. Bc6
{[%clk 0:02:00.9]} 18... Qe7 {[%clk 0:01:31.4]} 19. Bxe8 {[%clk 0:02:00.7]}
19... Qxe8 {[%clk 0:01:31.2]} 20. b3 {[%clk 0:01:51.6]} 20... Qb5 {[%clk
0:01:13.9]} 21. Rad1 {[%clk 0:01:41.1]} 21... Qb6 {[%clk 0:00:56.6]} 22. c4
{[%clk 0:01:35.4]} 22... g6 {[%clk 0:00:50]} 23. Qe3 {[%clk 0:01:31.9]} 23...
Qa6 {[%clk 0:00:44.1]} 24. a4 {[%clk 0:01:25.3]} 24... Qc8 {[%clk 0:00:44]} 25.
Qe4 {[%clk 0:01:19.4]} 25... Qf8 {[%clk 0:00:38.3]} 26. f4 {[%clk 0:01:07.4]}
26... Bf6 {[%clk 0:00:34.1]} 27. Qf3 {[%clk 0:01:00.8]} 27... Qg7 {[%clk
0:00:30.4]} 28. Qc6 {[%clk 0:00:41.5]} 28... Rc8 {[%clk 0:00:19.2]} 29. Re8+
{[%clk 0:00:40.7]} 29... Rxe8 {[%clk 0:00:17.9]} 30. Qxe8+ {[%clk 0:00:41.6]}
30... Qf8 {[%clk 0:00:18.4]} 31. Qxf8+ {[%clk 0:00:41.6]} 31... Kxf8 {[%clk
0:00:19.3]} 32. Kf2 {[%clk 0:00:41.5]} 32... Bc3 {[%clk 0:00:18.7]} 33. Rd3
{[%clk 0:00:40.1]} 33... Bb4 {[%clk 0:00:18]} 34. c3 {[%clk 0:00:39.7]} 34...
Bc5+ {[%clk 0:00:17.6]} 35. Kf3 {[%clk 0:00:39.2]} 35... a5 {[%clk 0:00:16.3]}
36. g4 {[%clk 0:00:35.5]} 36... Ke7 {[%clk 0:00:16.7]} 37. Ke4 {[%clk
0:00:34.5]} 37... Ke6 {[%clk 0:00:15.3]} 38. h4 {[%clk 0:00:31.6]} 38... f5+
{[%clk 0:00:13.5]} 39. gxf5+ {[%clk 0:00:30.4]} 39... gxf5+ {[%clk 0:00:13.9]}
40. Kf3 {[%clk 0:00:31]} 40... Kf6 {[%clk 0:00:14.4]} 41. Rd1 {[%clk 0:00:28.5]}
41... h6 {[%clk 0:00:14]} 42. Rb1 {[%clk 0:00:26.4]} 42... Bb6 {[%clk
0:00:12.8]} 43. b4 {[%clk 0:00:25.4]} 43... axb4 {[%clk 0:00:11.6]} 44. cxb4
{[%clk 0:00:26.3]} 44... Ke6 {[%clk 0:00:11.9]} 45. a5 {[%clk 0:00:26]} 45...
Ba7 {[%clk 0:00:12.3]} 46. b5 {[%clk 0:00:26.1]} 46... Kd7 {[%clk 0:00:12.8]}
47. Ke2 {[%clk 0:00:22.6]} 47... Bb8 {[%clk 0:00:10.9]} 48. Kd3 {[%clk
0:00:22.3]} 48... Ba7 {[%clk 0:00:11.4]} 49. Rb3 {[%clk 0:00:20.2]} 49... Ke6
{[%clk 0:00:11.1]} 50. b6 {[%clk 0:00:19.5]} 50... cxb6 {[%clk 0:00:10.8]} 51.
axb6 {[%clk 0:00:20.4]} 51... Bb8 {[%clk 0:00:11.6]} 52. Kd4 {[%clk 0:00:20.5]}
52... Kd7 {[%clk 0:00:12.3]} 53. Kd5 {[%clk 0:00:20.3]} 53... Kc8 {[%clk
0:00:12.2]} 54. Kc6 {[%clk 0:00:18.7]} 54... Kd8 {[%clk 0:00:12.2]} 55. b7
{[%clk 0:00:18.3]} 55... Ke7 {[%clk 0:00:11]} 56. Ra3 {[%clk 0:00:17.8]} 1-0

[Event "Betsys MČR v online bleskovém šachu 2021"]
[Site "Chess.com"]
[Date "2021.04.17"]
[Round "5"]
[White "TommyLud"]
[Black "Varinius"]
[Result "1/2-1/2"]
[WhiteElo "2161"]
[BlackElo "2432"]
[TimeControl "180+1"]
[EndTime "9:48:10 PDT"]
[Termination "Remíza opakováním pozice"]

1. d4 {[%clk 0:03:00.8]} 1... Nf6 {[%clk 0:02:59.4]} 2. c4 {[%clk 0:03:00.9]}
2... c5 {[%clk 0:02:59.7]} 3. d5 {[%clk 0:03:00.7]} 3... b5 {[%clk 0:03:00.2]}
4. cxb5 {[%clk 0:03:01.6]} 4... a6 {[%clk 0:03:00.4]} 5. bxa6 {[%clk 0:03:02.5]}
5... g6 {[%clk 0:03:00.3]} 6. Nc3 {[%clk 0:03:02.4]} 6... Bg7 {[%clk 0:03:00.2]}
7. e4 {[%clk 0:03:02.4]} 7... O-O {[%clk 0:03:00.7]} 8. Be2 {[%clk 0:03:02.3]}
8... Qa5 {[%clk 0:02:49.5]} 9. Bd2 {[%clk 0:03:01.8]} 9... Bxa6 {[%clk
0:02:44.5]} 10. e5 {[%clk 0:03:01]} 10... Ne8 {[%clk 0:02:41.3]} 11. Nf3 {[%clk
0:03:00.7]} 11... d6 {[%clk 0:02:38.2]} 12. e6 {[%clk 0:02:59.9]} 12... fxe6
{[%clk 0:02:35.7]} 13. Ng5 {[%clk 0:02:59.9]} 13... Nc7 {[%clk 0:02:32.8]} 14.
h4 {[%clk 0:02:37.6]} 14... Qb6 {[%clk 0:02:14.8]} 15. h5 {[%clk 0:01:37]} 15...
exd5 {[%clk 0:02:11.3]} 16. hxg6 {[%clk 0:01:30.3]} 16... hxg6 {[%clk
0:02:10.7]} 17. Qc2 {[%clk 0:01:26.5]} 17... Rf6 {[%clk 0:01:52.4]} 18. Bf3
{[%clk 0:00:57.3]} 18... e6 {[%clk 0:01:24.9]} 19. Nh7 {[%clk 0:00:32.4]} 19...
Rf5 {[%clk 0:01:24.8]} 20. Bg4 {[%clk 0:00:31.6]} 20... Nc6 {[%clk 0:01:10.2]}
21. Bxf5 {[%clk 0:00:30.9]} 21... exf5 {[%clk 0:01:08.4]} 22. g4 {[%clk
0:00:23.4]} 22... Nd4 {[%clk 0:01:07]} 23. Qb1 {[%clk 0:00:18.5]} 23... Re8+
{[%clk 0:00:43.9]} 24. Kd1 {[%clk 0:00:18.7]} 24... Qb8 {[%clk 0:00:13.9]} 25.
gxf5 {[%clk 0:00:17.8]} 25... Nxf5 {[%clk 0:00:13.4]} 26. Ng5 {[%clk 0:00:14]}
26... d4 {[%clk 0:00:12.8]} 27. Nce4 {[%clk 0:00:13.3]} 27... Nd5 {[%clk
0:00:12.1]} 28. Qc2 {[%clk 0:00:09.2]} 28... Nb4 {[%clk 0:00:11.3]} 29. Bxb4
{[%clk 0:00:08.7]} 29... Qxb4 {[%clk 0:00:10.7]} 30. Qb3+ {[%clk 0:00:09]} 30...
Qxb3+ {[%clk 0:00:08.5]} 31. axb3 {[%clk 0:00:09.9]} 31... Bb7 {[%clk
0:00:09.1]} 32. f3 {[%clk 0:00:09.6]} 32... Ne3+ {[%clk 0:00:06.2]} 33. Kd2
{[%clk 0:00:10]} 33... Bd5 {[%clk 0:00:06.5]} 34. Nxd6 {[%clk 0:00:07.7]} 34...
Rb8 {[%clk 0:00:05.1]} 35. Nge4 {[%clk 0:00:06.4]} 35... Bxb3 {[%clk 0:00:03.9]}
36. Nxc5 {[%clk 0:00:05.3]} 36... Bd5 {[%clk 0:00:03.4]} 37. Nce4 {[%clk
0:00:05.1]} 37... Rxb2+ {[%clk 0:00:02.8]} 38. Kd3 {[%clk 0:00:05.8]} 38... Rb3+
{[%clk 0:00:02.4]} 39. Kd2 {[%clk 0:00:05.6]} 39... Rb2+ {[%clk 0:00:02.9]} 40.
Kd3 {[%clk 0:00:06]} 40... Rb3+ {[%clk 0:00:03.3]} 41. Kd2 {[%clk 0:00:06.5]}
41... Nc4+ {[%clk 0:00:02.8]} 42. Nxc4 {[%clk 0:00:05.9]} 42... Bxc4 {[%clk
0:00:03.7]} 43. Ra8+ {[%clk 0:00:06.2]} 43... Kf7 {[%clk 0:00:03.6]} 44. Ra7+
{[%clk 0:00:06.7]} 44... Kf8 {[%clk 0:00:04]} 45. Ra8+ {[%clk 0:00:06.8]} 45...
Kf7 {[%clk 0:00:04.3]} 46. Ra7+ {[%clk 0:00:07]} 46... Kf8 {[%clk 0:00:04.7]}
47. Ra8+ {[%clk 0:00:04]} 47... Kf7 {[%clk 0:00:05]} 1/2-1/2

[Event "Betsys MČR v online bleskovém šachu 2021"]
[Site "Chess.com"]
[Date "2021.04.17"]
[Round "5"]
[White "BrunoT2"]
[Black "MaTpAt113"]
[Result "1/2-1/2"]
[WhiteElo "1162"]
[BlackElo "857"]
[TimeControl "180+1"]
[EndTime "9:48:10 PDT"]
[Termination "Remíza opakováním pozice"]

1. e4 {[%clk 0:03:00.9]} 1... c6 {[%clk 0:03:00.9]} 2. Nf3 {[%clk 0:03:00.8]}
2... d5 {[%clk 0:03:00.5]} 3. exd5 {[%clk 0:03:00.4]} 3... cxd5 {[%clk
0:02:59.5]} 4. d4 {[%clk 0:03:00.8]} 4... Bf5 {[%clk 0:02:57.6]} 5. Nc3 {[%clk
0:03:00.1]} 5... e6 {[%clk 0:02:55.9]} 6. Bf4 {[%clk 0:02:59.3]} 6... Nc6 {[%clk
0:02:55.4]} 7. Ne5 {[%clk 0:02:55.7]} 7... Be7 {[%clk 0:02:53.2]} 8. Nxc6 {[%clk
0:02:54.1]} 8... bxc6 {[%clk 0:02:41.9]} 9. Bd3 {[%clk 0:02:45.9]} 9... Bxd3
{[%clk 0:02:26.9]} 10. Qxd3 {[%clk 0:02:44.1]} 10... Nf6 {[%clk 0:02:21.4]} 11.
O-O {[%clk 0:02:38.4]} 11... Bd6 {[%clk 0:02:17.2]} 12. Bxd6 {[%clk 0:02:35.8]}
12... Qxd6 {[%clk 0:02:15.5]} 13. Rfe1 {[%clk 0:02:15]} 13... Ng4 {[%clk
0:02:13.2]} 14. Qg3 {[%clk 0:01:59.5]} 14... Qxg3 {[%clk 0:02:00.4]} 15. hxg3
{[%clk 0:01:57.6]} 15... Nf6 {[%clk 0:01:56.2]} 16. Ne2 {[%clk 0:01:46]} 16...
Ne4 {[%clk 0:01:52.7]} 17. f3 {[%clk 0:01:34.4]} 17... Nf6 {[%clk 0:01:49.5]}
18. Nf4 {[%clk 0:01:27.2]} 18... h6 {[%clk 0:01:37]} 19. Rad1 {[%clk 0:01:21.9]}
19... g5 {[%clk 0:01:34.2]} 20. Nh3 {[%clk 0:01:18.6]} 20... Rb8 {[%clk
0:01:32.8]} 21. b3 {[%clk 0:01:16.2]} 21... Nh5 {[%clk 0:01:26.7]} 22. Kf2
{[%clk 0:01:08.1]} 22... Rb4 {[%clk 0:01:21.1]} 23. c3 {[%clk 0:00:45.2]} 23...
Rb5 {[%clk 0:01:16.7]} 24. Rb1 {[%clk 0:00:41.4]} 24... Rg8 {[%clk 0:01:11.3]}
25. c4 {[%clk 0:00:28.4]} 25... dxc4 {[%clk 0:00:57.3]} 26. bxc4 {[%clk
0:00:26.4]} 26... Rxb1 {[%clk 0:00:24.3]} 27. Rxb1 {[%clk 0:00:24.6]} 27... Ke7
{[%clk 0:00:23.7]} 28. Rb7+ {[%clk 0:00:19.9]} 28... Kf6 {[%clk 0:00:23]} 29. g4
{[%clk 0:00:17.3]} 29... Nf4 {[%clk 0:00:21.1]} 30. Nxf4 {[%clk 0:00:17.4]}
30... gxf4 {[%clk 0:00:20.3]} 31. Rxa7 {[%clk 0:00:17.1]} 31... Rb8 {[%clk
0:00:18.9]} 32. Rc7 {[%clk 0:00:16.9]} 32... Rb2+ {[%clk 0:00:18.3]} 33. Kg1
{[%clk 0:00:16.5]} 33... Rxa2 {[%clk 0:00:18.3]} 34. Rxc6 {[%clk 0:00:16.5]}
34... Ra1+ {[%clk 0:00:18.2]} 35. Kh2 {[%clk 0:00:16]} 35... Rd1 {[%clk
0:00:15.3]} 36. d5 {[%clk 0:00:13.7]} 36... Rd2 {[%clk 0:00:14.2]} 37. dxe6
{[%clk 0:00:11.5]} 37... fxe6 {[%clk 0:00:13.2]} 38. Rb6 {[%clk 0:00:09.3]}
38... Rc2 {[%clk 0:00:13.2]} 39. Rc6 {[%clk 0:00:09]} 39... Rc3 {[%clk
0:00:12.6]} 40. c5 {[%clk 0:00:09]} 40... Rc4 {[%clk 0:00:12]} 41. Kh3 {[%clk
0:00:08.4]} 41... Rc3 {[%clk 0:00:10.6]} 42. Kh2 {[%clk 0:00:07.5]} 42... Rc4
{[%clk 0:00:10.3]} 43. g3 {[%clk 0:00:07.6]} 43... Rc2+ {[%clk 0:00:09.6]} 44.
Kh3 {[%clk 0:00:07.5]} 44... fxg3 {[%clk 0:00:07.2]} 45. Kxg3 {[%clk 0:00:07.7]}
45... Rc3 {[%clk 0:00:07.1]} 46. Kf4 {[%clk 0:00:07.2]} 46... Rc4+ {[%clk
0:00:06.4]} 47. Kg3 {[%clk 0:00:07.2]} 47... Rc3 {[%clk 0:00:06.1]} 48. Kg2
{[%clk 0:00:06.1]} 48... Rc2+ {[%clk 0:00:05.6]} 49. Kg3 {[%clk 0:00:06.3]}
49... Rc3 {[%clk 0:00:05.7]} 1/2-1/2